fUSD/lending_fUSD_20260129
["ID","MTS","AMOUNT","RATE_DAILY","PERIOD"]
[403945740,1769685040434,-500.0,0.00016438,2]
[403945742,1769685040445,-500.0,0.00016438,2]
[403945744,1769685040454,-500.0,0.00016438,2]
[403945746,1769685040463,-500.0,0.00016438,2]
[403945748,1769685040473,-598.21081803,0.00016438,2]
[403945750,1769685040482,-500.0,0.00016438,2]
[403945752,1769685040491,-500.0,0.00016438,2]
[403945753,1769685040500,-500.0,0.00016438,2]
[403945756,1769685040509,-500.0,0.00016438,2]
[403945758,1769685040518,-500.0,0.00016438,2]
[403945760,1769685040527,-500.0,0.00016438,2]
[403945761,1769685040536,-500.0,0.00016438,2]
[403945763,1769685040546,-500.0,0.00016438,2]
[403945765,1769685040555,-500.0,0.00016438,2]
[403945767,1769685040564,-500.0,0.00016438,2]
[403945770,1769685040573,-500.0,0.00016438,2]
[403945772,1769685040582,-500.0,0.00016438,2]
[403945774,1769685040592,-500.0,0.00016438,2]
[403945776,1769685040601,-500.0,0.00016438,2]
[403945778,1769685040610,-500.0,0.00016438,2]
[403945780,1769685040619,-500.0,0.00016438,2]
[403945782,1769685040628,-500.0,0.00016438,2]
[403945784,1769685040637,-500.0,0.00016438,2]
[403945786,1769685040646,-500.0,0.00016438,2]
[403945787,1769685040655,-500.0,0.00016438,2]
[403945789,1769685040664,-500.0,0.00016438,2]
[403945791,1769685040673,-500.0,0.00016438,2]
[403945793,1769685040682,-500.0,0.00016438,2]
[403945795,1769685040691,-500.0,0.00016438,2]
[403945798,1769685040701,-500.0,0.00016438,2]
[403945799,1769685040709,-500.0,0.00016438,2]
[403945801,1769685040718,-500.0,0.00016438,2]
[403945803,1769685040727,-500.0,0.00016438,2]
[403945805,1769685040736,-500.0,0.00016438,2]
[403945807,1769685040745,-500.0,0.00016438,2]
[403945810,1769685040755,-500.0,0.00016438,2]
[403945812,1769685040764,-758.097926,0.00016438,2]
[403945814,1769685040773,-758.097926,0.00016438,2]
[403945816,1769685040782,-758.097926,0.00016438,2]
[403945818,1769685040791,-758.097926,0.00016438,2]
[403945820,1769685040800,-758.097926,0.00016438,2]
[403945822,1769685040809,-758.097926,0.00016438,2]
[403945824,1769685040818,-758.097926,0.00016438,2]
[403945826,1769685040827,-758.097926,0.00016438,2]
[403945828,1769685040835,-758.097926,0.00016438,2]
[403945830,1769685040846,-758.097926,0.00016438,2]
[403945832,1769685040856,-758.097926,0.00016438,2]
[403945834,1769685040865,-758.097926,0.00016438,2]
[403945836,1769685040875,-758.097926,0.00016438,2]
[403945838,1769685040884,-758.097926,0.00016438,2]
[403945840,1769685040893,-758.097926,0.00016438,2]
[403945841,1769685040902,-758.097926,0.00016438,2]
[403945843,1769685040912,-758.097926,0.00016438,2]
[403945845,1769685040922,-758.097926,0.00016438,2]
[403945848,1769685040932,-758.097926,0.00016438,2]
[403945850,1769685040942,-758.097926,0.00016438,2]
[403945851,1769685040952,-758.097926,0.00016438,2]
[403945853,1769685040961,-758.097926,0.00016438,2]
[403945855,1769685040970,-758.097926,0.00016438,2]
[403945857,1769685040979,-758.097926,0.00016438,2]
[403945859,1769685040988,-758.097926,0.00016438,2]
[403945862,1769685040997,-758.097926,0.00016438,2]
[403945864,1769685041009,-758.097926,0.00016438,2]
[403945866,1769685041018,-758.097926,0.00016438,2]
[403945868,1769685041027,-758.097926,0.00016438,2]
[403945870,1769685041035,-758.097926,0.00016438,2]
[403945872,1769685041045,-758.097926,0.00016438,2]
[403945874,1769685041055,-758.097926,0.00016438,2]
[403945876,1769685041066,-758.097926,0.00016438,2]
[403945878,1769685041075,-758.097926,0.00016438,2]
[403945880,1769685041085,-758.097926,0.00016438,2]
[403945882,1769685041098,-758.097926,0.00016438,2]
[403945884,1769685041108,-758.097926,0.00016438,2]
[403945886,1769685041118,-758.097926,0.00016438,2]
[403945888,1769685041127,-758.097926,0.00016438,2]
[403945890,1769685041137,-758.097926,0.00016438,2]
[403945892,1769685041146,-758.097926,0.00016438,2]
[403945894,1769685041155,-800.0,0.00016438,2]
[403945896,1769685041163,-165.34,0.0001644,2]
[403945898,1769685041172,-381.19,0.00016459,2]
[403945900,1769685041181,-195.0,0.00016459,2]
[403945901,1769685041190,-150.0,0.00016473,2]
[403945903,1769685041199,-150.0,0.00016473,2]
[403945905,1769685041208,-434.71,0.0001649,2]
[403945907,1769685041217,-500.0,0.0001652,2]
[403945909,1769685041225,-500.0,0.0001652,2]
[403945911,1769685041235,-700.49,0.0001652,2]
[403945913,1769685041243,-1000.0,0.00016521,2]
[403945915,1769685041252,-500.0,0.00016521,2]
[403945917,1769685041262,-1000.0,0.00016521,2]
[403945919,1769685041271,-1000.0,0.00016521,2]
[403945921,1769685041280,-503.09870012,0.00016521,2]
[403945923,1769685041289,-1000.0,0.00016521,2]
[403945925,1769685041298,-505.52548547,0.00016521,2]
[403945927,1769685041308,-504.68661395,0.00016521,2]
[403945929,1769685041317,-1000.0,0.00016521,2]
[403945931,1769685041327,-1000.0,0.00016521,2]
[403945933,1769685041339,-1000.0,0.00016521,2]
[403945935,1769685041348,-1000.0,0.00016521,2]
[403945937,1769685041357,-1000.0,0.00016521,2]
[403945939,1769685041367,-1000.0,0.00016521,2]
[403945941,1769685041376,-1000.0,0.00016521,2]
[403945943,1769685041385,-1000.0,0.00016521,2]
[403945945,1769685041395,-459.4735822,0.00016521,2]
[403945947,1769685041404,-156.35277516,0.00016521,2]
[403945949,1769685041414,-401.40440984,0.00016521,2]
[403945951,1769685041423,-1000.0,0.00016521,2]
[403945953,1769685041432,-1000.0,0.00016521,2]
[403945955,1769685041441,-850.06999106,0.00016521,2]
[403945957,1769685041451,-1000.0,0.00016521,2]
[403945959,1769685041460,-1000.0,0.00016521,2]
[403945961,1769685041470,-1000.0,0.00016521,2]
[403945963,1769685041479,-947.2404325,0.00016521,2]
[403945965,1769685041488,-1000.0,0.00016521,2]
[403945967,1769685041497,-510.0,0.00016521,2]
[403945969,1769685041506,-362.0,0.00016566,2]
[403945971,1769685041515,-500.0,0.00016578,2]
[403945973,1769685041524,-500.0,0.00016578,2]
[403945975,1769685041532,-387.78644514,0.00016579,2]
[403945977,1769685041542,-615.87316601,0.00016579,2]
[403945979,1769685041551,-500.0,0.00016579,2]
[403945981,1769685041560,-500.0,0.00016579,2]
[403945983,1769685041569,-500.0,0.00016579,2]
[403945985,1769685041578,-500.0,0.00016579,2]
[403945987,1769685041587,-500.0,0.00016579,2]
[403945989,1769685041596,-351.83689664,0.00016579,2]
[403945991,1769685041605,-500.0,0.00016579,2]
[403945993,1769685041614,-172.54440668,0.00016579,2]
[403945995,1769685041623,-152.23356949,0.00016579,2]
[403945997,1769685041633,-198.11613377,0.00016579,2]
[403945999,1769685041642,-241.22361511,0.00016579,2]
[403946001,1769685041651,-500.0,0.00016579,2]
[403946003,1769685041660,-500.0,0.00016579,2]
[403946005,1769685041669,-500.0,0.00016579,2]
[403946007,1769685041678,-500.0,0.00016579,2]
[403946009,1769685041687,-500.0,0.00016579,2]
[403946011,1769685041695,-500.0,0.00016579,2]
[403946013,1769685041704,-500.0,0.00016579,2]
[403946015,1769685041713,-500.0,0.00016579,2]
[403946017,1769685041722,-539.72763655,0.00016579,2]
[403946019,1769685041730,-245.22730188,0.00016579,2]
[403946020,1769685041740,-237.25702033,0.00016579,2]
[403946023,1769685041749,-858.62,0.00016579,2]
[403946025,1769685041758,-500.0,0.00016579,2]
[403946027,1769685041768,-500.0,0.00016579,2]
[403946029,1769685041778,-500.0,0.00016579,2]
[403946031,1769685041787,-500.0,0.00016579,2]
[403946032,1769685041797,-500.0,0.00016579,2]
[403946034,1769685041808,-30859.55,0.0001658,2]
[403946036,1769685041817,-14776.18,0.0001658,2]
[403946038,1769685041826,-3240.0,0.0001658,2]
[403946040,1769685041835,-150.0,0.0001658,2]
[403946042,1769685041844,-2229.2,0.00016595,2]
[403946044,1769685041853,-500.0,0.00016596,2]
[403946046,1769685041862,-990.0,0.00016599,2]
[403946048,1769685041871,-185.35,0.00016626,2]
[403946050,1769685041880,-2507.07,0.00016627,2]
[403946052,1769685041890,-2857.74,0.00016627,2]
[403946054,1769685041899,-389.0,0.00016632,2]
[403946056,1769685041908,-1304.0,0.00016665,2]
[403946058,1769685041917,-1121.2393618,0.00016756,2]
[403946060,1769685041927,-392.75117701,0.00016815,2]
[403946062,1769685041936,-273.0,0.00016825,2]
[403946064,1769685041946,-2229.2,0.00016869,2]
[403946066,1769685041955,-500.0,0.0001687,2]
[403946068,1769685041964,-1680.0,0.0001693,2]
[403946070,1769685041973,-300.0,0.00016937,2]
[403946072,1769685041982,-201.01666488,0.00016937,2]
[403946074,1769685041991,-2500.0,0.00016937,2]
[403946076,1769685042003,-195.0,0.00016937,2]
[403946078,1769685042012,-1228.03820374,0.00016937,2]
[403946080,1769685042022,-500.0,0.00016937,2]
[403946082,1769685042031,-250.0,0.00016938,2]
[403946085,1769685042041,-500.0,0.00016954,2]
[403946086,1769685042050,-500.0,0.00016954,2]
[403946088,1769685042059,-629.54106026,0.00016954,2]
[403946091,1769685042070,-250.0,0.00017,2]
[403946093,1769685042080,-199.0,0.00017005,2]
[403946094,1769685042090,-320.0,0.00017027,2]
[403946097,1769685042103,-537.0,0.00017039,2]
[403946098,1769685042112,-1500.8130636,0.00017068,2]
[403946100,1769685042122,-1500.0,0.00017068,2]
[403946102,1769685042131,-1001.11024626,0.00017068,2]
[403946104,1769685042140,-506.79391477,0.00017068,2]
[403946106,1769685042149,-1500.0,0.00017068,2]
[403946108,1769685042158,-1001.84097884,0.00017068,2]
[403946111,1769685042168,-1500.0,0.00017068,2]
[403946113,1769685042177,-1500.0,0.00017068,2]
[403946114,1769685042186,-1500.0,0.00017068,2]
[403946116,1769685042195,-503.02067559,0.00017068,2]
[403946118,1769685042204,-1500.0,0.00017068,2]
[403946120,1769685042213,-1502.1314458,0.00017068,2]
[403946122,1769685042222,-1500.0,0.00017068,2]
[403946124,1769685042232,-1500.0,0.00017068,2]
[403946127,1769685042241,-504.61384517,0.00017068,2]
[403946129,1769685042251,-501.80313888,0.00017068,2]
[403946131,1769685042260,-1345.01744062,0.00017068,2]
[403946133,1769685042269,-1325.0,0.00017073,2]
[403946134,1769685042279,-500.0,0.00017092,2]
[403946137,1769685042289,-1515.0,0.00017107,2]
[403946138,1769685042299,-504.0,0.00017141,2]
[403946141,1769685042309,-2229.2,0.00017143,2]
[403946143,1769685042320,-500.0,0.00017144,2]
[403946145,1769685042332,-617.0,0.00017175,2]
[403946147,1769685042342,-1056.0,0.00017209,2]
[403946149,1769685042352,-1602.0,0.00017243,2]
[403946151,1769685042361,-2229.2,0.00017417,2]
[403946152,1769685042371,-500.0,0.00017418,2]
[403946155,1769685042381,-185.35,0.00017457,2]
[403946157,1769685042390,-2857.74,0.00017459,2]
[403946159,1769685042399,-1600.0,0.00017534,2]
[403946161,1769685042410,-8600.0,0.000176,6]
[403946163,1769685042419,-2000.0,0.00017616,2]
[403946164,1769685042429,-501.39656226,0.00017616,2]
[403946166,1769685042438,-619.40917961,0.00017616,2]
[403946168,1769685042447,-1862.0030697,0.00017616,2]
[403946170,1769685042456,-500.0,0.00017616,2]
[403946172,1769685042465,-837.06630886,0.00017616,2]
[403946174,1769685042475,-2000.0,0.00017616,2]
[403946176,1769685042485,-2000.0,0.00017616,2]
[403946179,1769685042495,-2229.2,0.00017691,2]
[403946181,1769685042504,-247.13748225,0.00017692,2]
[403946182,1769685042514,-2901.75651393,0.00017694,2]
[403946184,1769685042524,-7874.30407594,0.00017695,2]
[403946186,1769685042533,-1262.56608002,0.000177,2]
[403946188,1769685042542,-1193.77236727,0.000177,2]
[403946190,1769685042551,-17200.0,0.000177,6]
[403946191,1769685042560,-487.0,0.000177,2]
[403946192,1769685042569,-487.0,0.000177,2]
[403946193,1769685042578,-487.0,0.000177,2]
[403946194,1769685042587,-487.0,0.000177,2]
[403946195,1769685042595,-487.0,0.000177,2]
[403946196,1769685042604,-487.0,0.000177,2]
[403946197,1769685042613,-487.0,0.000177,2]
[403946198,1769685042622,-946.27,0.000177,2]
[403946199,1769685042631,-150.0,0.000177,2]
[403946200,1769685042640,-18312.0082101,0.00017706,2]
[403946201,1769685042649,-866.0,0.00017722,2]
[403946202,1769685042658,-1228.0,0.00017781,2]
[403946204,1769685042666,-151.0,0.00017792,2]
[403946206,1769685042675,-548.75558421,0.00017794,2]
[403946208,1769685042685,-500.0,0.00017794,2]
[403946210,1769685042693,-502.01597814,0.00017794,2]
[403946212,1769685042702,-500.0,0.00017794,2]
[403946214,1769685042712,-500.0,0.00017794,2]
[403946216,1769685042721,-502.28343568,0.00017794,2]
[403946218,1769685042730,-500.0,0.00017794,2]
[403946220,1769685042739,-500.0,0.00017794,2]
[403946222,1769685042748,-500.0,0.00017794,2]
[403946224,1769685042757,-500.0,0.00017794,2]
[403946226,1769685042766,-414.71781927,0.00017794,2]
[403946228,1769685042775,-500.0,0.00017794,2]
[403946230,1769685042786,-500.0,0.00017794,2]
[403946232,1769685042794,-500.0,0.00017794,2]
[403946234,1769685042804,-500.0,0.00017794,2]
[403946236,1769685042813,-500.0,0.00017794,2]
[403946238,1769685042823,-500.0,0.00017794,2]
[403946240,1769685042832,-500.0,0.00017794,2]
[403946242,1769685042841,-500.0,0.00017794,2]
[403946244,1769685042850,-500.0,0.00017794,2]
[403946246,1769685042859,-500.0,0.00017794,2]
[403946248,1769685042868,-500.0,0.00017794,2]
[403946250,1769685042877,-500.0,0.00017794,2]
[403946252,1769685042887,-500.0,0.00017794,2]
[403946254,1769685042896,-500.0,0.00017794,2]
[403946256,1769685042905,-500.0,0.00017794,2]
[403946258,1769685042914,-500.0,0.00017794,2]
[403946260,1769685042923,-500.0,0.00017794,2]
[403946262,1769685042932,-500.0,0.00017794,2]
[403946264,1769685042942,-500.0,0.00017794,2]
[403946266,1769685042952,-500.0,0.00017794,2]
[403946268,1769685042961,-500.0,0.00017794,2]
[403946270,1769685042970,-500.0,0.00017794,2]
[403946272,1769685042979,-500.0,0.00017794,2]
[403946274,1769685042989,-500.0,0.00017794,2]
[403946276,1769685042998,-500.0,0.00017794,2]
[403946278,1769685043007,-500.0,0.00017794,2]
[403946280,1769685043016,-500.0,0.00017794,2]
[403946282,1769685043025,-500.0,0.00017794,2]
[403946284,1769685043034,-500.0,0.00017794,2]
[403946286,1769685043043,-500.0,0.00017794,2]
[403946288,1769685043053,-500.0,0.00017794,2]
[403946290,1769685043063,-500.0,0.00017794,2]
[403946292,1769685043071,-858.62,0.00017794,2]
[403946294,1769685043080,-858.62,0.00017794,2]
[403946296,1769685043089,-858.62,0.00017794,2]
[403946297,1769685043098,-858.62,0.00017794,2]
[403946299,1769685043107,-858.62,0.00017794,2]
[403946301,1769685043116,-858.62,0.00017794,2]
[403946303,1769685043125,-858.62,0.00017794,2]
[403946306,1769685043135,-858.62,0.00017794,2]
[403946308,1769685043146,-500.0,0.00017794,2]
[403946310,1769685043156,-500.0,0.00017794,2]
[403946312,1769685043166,-500.0,0.00017794,2]
[403946314,1769685043175,-572.92100435,0.00017794,2]
[403946316,1769685043185,-500.0,0.00017794,2]
[403946318,1769685043194,-500.0,0.00017794,2]
[403946320,1769685043203,-514.83889524,0.00017794,2]
[403946321,1769685043212,-150.0,0.00017794,2]
[403946325,1769685043222,-580.66574664,0.00017794,2]
[403946327,1769685043232,-500.0,0.00017794,2]
[403946329,1769685043241,-500.0,0.00017794,2]
[403946331,1769685043250,-500.0,0.00017794,2]
[403946333,1769685043259,-542.58663084,0.00017794,2]
[403946335,1769685043268,-500.0,0.00017794,2]
[403946337,1769685043277,-500.0,0.00017794,2]
[403946340,1769685043286,-500.0,0.00017794,2]
[403946343,1769685043295,-500.0,0.00017794,2]
[403946346,1769685043305,-500.0,0.00017794,2]
[403946349,1769685043315,-500.0,0.00017794,2]
[403946352,1769685043324,-500.0,0.00017794,2]
[403946354,1769685043337,-500.0,0.00017794,2]
[403946356,1769685043347,-249.60357238,0.00017794,2]
[403946358,1769685043356,-500.0,0.00017794,2]
[403946360,1769685043365,-500.0,0.00017794,2]
[403946362,1769685043376,-500.0,0.00017794,2]
[403946364,1769685043386,-500.0,0.00017794,2]
[403946366,1769685043396,-500.0,0.00017794,2]
[403946368,1769685043407,-1269.24,0.000178,2]
[403946370,1769685043417,-25800.0,0.000178,6]
[403946372,1769685043427,-500.0,0.00017835,2]
[403946374,1769685043437,-500.0,0.00017835,2]
[403946376,1769685043446,-700.49,0.00017835,2]
[403946378,1769685043456,-34400.0,0.000179,6]
[403946380,1769685043465,-587.0,0.00017949,2]
[403946382,1769685043474,-2229.2,0.00017965,2]
[403946384,1769685043483,-500.0,0.00017972,2]
[403946386,1769685043492,-500.0,0.00017972,2]
[403946388,1769685043502,-500.0,0.00017973,2]
[403946390,1769685043511,-500.0,0.00017973,2]
[403946392,1769685043520,-500.0,0.00017973,2]
[403946394,1769685043530,-500.0,0.00017973,2]
[403946396,1769685043539,-500.0,0.00017973,2]
[403946398,1769685043548,-500.0,0.00017973,2]
[403946400,1769685043557,-500.0,0.00017973,2]
[403946402,1769685043566,-500.0,0.00017973,2]
[403946404,1769685043575,-500.0,0.00017973,2]
[403946406,1769685043584,-500.0,0.00017973,2]
[403946408,1769685043593,-515.88206341,0.00017973,2]
[403946410,1769685043602,-500.0,0.00017973,2]
[403946412,1769685043611,-500.0,0.00017973,2]
[403946414,1769685043620,-500.0,0.00017973,2]
[403946416,1769685043629,-160.09303877,0.00017973,2]
[403946417,1769685043638,-500.0,0.00017973,2]
[403946420,1769685043648,-504.20951303,0.00017973,2]
[403946422,1769685043657,-500.0,0.00017973,2]
[403946423,1769685043666,-500.0,0.00017973,2]
[403946425,1769685043676,-500.0,0.00017973,2]
[403946427,1769685043685,-158.05561362,0.00017973,2]
[403946429,1769685043695,-500.0,0.00017973,2]
[403946431,1769685043704,-500.0,0.00017973,2]
[403946433,1769685043713,-500.0,0.00017973,2]
[403946435,1769685043722,-500.0,0.00017973,2]
[403946437,1769685043731,-500.0,0.00017973,2]
[403946439,1769685043740,-500.0,0.00017973,2]
[403946441,1769685043749,-558.2762163,0.00017973,2]
[403946443,1769685043758,-500.0,0.00017973,2]
[403946445,1769685043767,-500.0,0.00017973,2]
[403946447,1769685043776,-500.0,0.00017973,2]
[403946449,1769685043786,-500.0,0.00017973,2]
[403946451,1769685043795,-500.0,0.00017973,2]
[403946453,1769685043805,-502.44429427,0.00017973,2]
[403946455,1769685043814,-501.28378078,0.00017973,2]
[403946457,1769685043823,-280.34589968,0.0001799,2]
[403946459,1769685043833,-270.35149328,0.00017998,2]
[403946461,1769685043842,-500.0,0.00017998,2]
[403946463,1769685043851,-500.0,0.00017998,2]
[403946465,1769685043860,-500.0,0.00017998,2]
[403946468,1769685043870,-500.0,0.00017998,2]
[403946470,1769685043879,-500.0,0.00017998,2]
[403946472,1769685043888,-500.0,0.00017998,2]
[403946473,1769685043897,-500.0,0.00017998,2]
[403946475,1769685043907,-500.0,0.00017998,2]
[403946477,1769685043916,-500.0,0.00017998,2]
[403946479,1769685043925,-500.0,0.00017998,2]
[403946481,1769685043934,-500.0,0.00017998,2]
[403946483,1769685043943,-500.0,0.00017998,2]
[403946485,1769685043952,-500.0,0.00017998,2]
[403946508,1769685044202,-500.0,0.00017998,2]
[403946511,1769685044212,-500.0,0.00017998,2]
[403946513,1769685044222,-500.0,0.00017998,2]
[403946516,1769685044232,-500.0,0.00017998,2]
[403946520,1769685044241,-228.68300152,0.00017998,2]
[403946523,1769685044251,-1040.45,0.00017998,2]
[403946525,1769685044260,-1040.45,0.00017998,2]
[403946527,1769685044269,-1040.45,0.00017998,2]
[403946530,1769685044278,-1040.45,0.00017998,2]
[403946532,1769685044288,-1040.45,0.00017998,2]
[403946534,1769685044297,-1040.45,0.00017998,2]
[403946536,1769685044306,-1040.45,0.00017998,2]
[403946538,1769685044317,-1040.45,0.00017998,2]
[403946540,1769685044330,-1040.45,0.00017998,2]
[403946541,1769685044342,-500.0,0.00017998,2]
[403946543,1769685044352,-500.0,0.00017998,2]
[403946545,1769685044362,-500.0,0.00017998,2]
[403946547,1769685044373,-500.0,0.00017998,2]
[403946549,1769685044383,-522.0597165,0.00017998,2]
[403946550,1769685044392,-700.49,0.00017998,2]
[403946552,1769685044402,-700.49,0.00017998,2]
[403946554,1769685044412,-700.49,0.00017998,2]
[403946556,1769685044421,-700.49,0.00017998,2]
[403946558,1769685044430,-700.49,0.00017998,2]
[403946559,1769685044440,-700.49,0.00017998,2]
[403946561,1769685044449,-700.49,0.00017998,2]
[403946563,1769685044458,-700.49,0.00017998,2]
[403946564,1769685044467,-700.49,0.00017998,2]
[403946565,1769685044476,-500.0,0.00017999,2]
[403946566,1769685044485,-500.0,0.00017999,2]
[403946567,1769685044494,-500.0,0.00017999,2]
[403946568,1769685044503,-1040.45,0.00017999,2]
[403946569,1769685044513,-1040.45,0.00017999,2]
[403946570,1769685044522,-1040.45,0.00017999,2]
[403946571,1769685044531,-700.49,0.00017999,2]
[403946572,1769685044540,-700.49,0.00017999,2]
[403946573,1769685044549,-700.49,0.00017999,2]
[403946574,1769685044558,-523.0,0.00018,2]
[403946575,1769685044566,-228.39138238,0.00018136,2]
[403946576,1769685044575,-2500.0,0.00018164,2]
[403946577,1769685044584,-2218.87291316,0.00018164,2]
[403946578,1769685044593,-2229.2,0.00018239,2]
[403946579,1769685044604,-185.35,0.00018288,2]
[403946580,1769685044613,-2857.74,0.0001829,2]
[403946581,1769685044622,-200.15546791,0.00018319,2]
[403946582,1769685044632,-250.0,0.0001835,2]
[403946583,1769685044643,-56808.95164211,0.00018461,2]
[403946584,1769685044654,-150.65763047,0.00018473,2]
[403946585,1769685044663,-341.61275203,0.00018497,2]
[403946586,1769685044673,-1023.81512056,0.00018497,2]
[403946587,1769685044682,-2779.16558709,0.00018497,2]
[403946588,1769685044692,-2229.2,0.00018513,2]
[403946589,1769685044701,-1000.0,0.00018521,2]
[403946590,1769685044711,-1000.0,0.00018521,2]
[403946591,1769685044720,-500.0,0.00018521,2]
[403946592,1769685044729,-1000.0,0.00018521,2]
[403946593,1769685044738,-1000.0,0.00018521,2]
[403946594,1769685044747,-1000.0,0.00018521,2]
[403946595,1769685044757,-502.00566275,0.00018521,2]
[403946596,1769685044766,-2351.0,0.00018615,2]
[403946597,1769685044776,-1518.43917855,0.0001863,2]
[403946598,1769685044785,-150.0,0.00018633,2]
[403946599,1769685044794,-2000.0,0.00018712,2]
[403946600,1769685044804,-2229.2,0.00018787,2]
[403946601,1769685044813,-500.0,0.00018828,2]
[403946602,1769685044822,-700.49,0.00018828,2]
[403946603,1769685044832,-1040.45,0.00018875,2]
[403946604,1769685044842,-300.0,0.00019,2]
[403946605,1769685044851,-1473.0,0.00019015,2]
[403946606,1769685044861,-2229.2,0.00019061,2]
[403946607,1769685044871,-1002.40100789,0.00019068,2]
[403946608,1769685044880,-1500.0,0.00019068,2]
[403946609,1769685044889,-1500.0,0.00019068,2]
[403946610,1769685044898,-185.35,0.00019119,2]
[403946611,1769685044908,-2857.74,0.00019122,2]
[403946612,1769685044918,-500.0,0.00019178,2]
[403946613,1769685044927,-500.0,0.00019178,2]
[403946614,1769685044936,-500.0,0.00019178,2]
[403946615,1769685044946,-500.0,0.00019178,2]
[403946616,1769685044955,-500.0,0.00019178,2]
[403946618,1769685044964,-555.77294319,0.00019178,2]
[403946619,1769685044973,-500.0,0.00019178,2]
[403946620,1769685044983,-500.0,0.00019178,2]
[403946621,1769685044993,-500.0,0.00019178,2]
[403946622,1769685045003,-2229.2,0.00019335,2]
[403946623,1769685045012,-2229.2,0.00019608,2]
[403946624,1769685045022,-2000.0,0.00019616,2]
[403946625,1769685045032,-2000.0,0.00019616,2]
[403946626,1769685045041,-442.36,0.00019636,2]
[403946627,1769685045050,-823.0,0.00019644,2]
[403946628,1769685045060,-250.28,0.00019653,2]
[403946629,1769685045070,-2229.2,0.00019882,2]
[403946630,1769685045080,-500.0,0.00019895,2]
[403946631,1769685045089,-185.35,0.00019951,2]
[403946632,1769685045100,-2857.74,0.00019953,2]
[403946633,1769685045110,-1000.0,0.0002,2]
[403946634,1769685045119,-2229.2,0.00020156,2]
[403946635,1769685045129,-1040.45,0.00020161,2]
[403946636,1769685045138,-500.0,0.00020164,2]
[403946637,1769685045148,-2025.493203,0.00020164,2]
[403946638,1769685045157,-2500.0,0.00020164,2]
[403946639,1769685045167,-159.1444277,0.00020175,2]
[403946640,1769685045177,-500.0,0.00020278,2]
[403946641,1769685045187,-383.69997192,0.00020278,2]
[403946642,1769685045197,-1040.45,0.00020278,2]
[403946643,1769685045206,-700.49,0.00020278,2]
[403946644,1769685045216,-700.49,0.00020278,2]
[403946645,1769685045227,-2505.0,0.00020416,2]
[403946646,1769685045236,-2229.2,0.0002043,2]
[403946647,1769685045246,-3292.0,0.00020467,2]
[403946648,1769685045256,-700.49,0.00020666,2]
[403946649,1769685045266,-2229.26627011,0.00020704,2]
[403946650,1769685045276,-2487.07006798,0.00020712,2]
[403946651,1769685045285,-185.35,0.00020782,2]
[403946652,1769685045295,-1040.45,0.00020787,2]
[403946653,1769685045305,-4085.9613245,0.00020791,2]
[403946654,1769685045315,-273.75,0.00020977,2]
[403946655,1769685045328,-350.0,0.00021,2]
[403946656,1769685045343,-2901.75651392,0.00021096,2]
[403946657,1769685045353,-326.04,0.000211,7]
[403946658,1769685045363,-150.0,0.00021179,2]
[403946659,1769685045374,-500.21641587,0.00021179,2]